fUSD/lending_fUSD_20250922
["ID","MTS","AMOUNT","RATE_DAILY","PERIOD"]
[386868968,1758499271960,2669.99,0.00018281,2]
[386868969,1758499290346,514.15,0.00018272,2]
[386868971,1758499295313,666.0,0.00018316,3]
[386868973,1758499346797,2527.96,0.00018221,2]
[386868977,1758499521847,10000.0,0.00018,2]
[386868981,1758499643752,592.46,0.0001828,2]
[386868982,1758499671011,211.51,9.139e-05,2]
[386868983,1758499671210,211.51,9.62e-05,2]
[386868984,1758499671432,211.51,0.00010101,2]
[386868985,1758499671648,211.51,0.00010582,2]
[386868986,1758499671862,211.51,0.00011063,2]
[386868987,1758499672083,211.51,0.00011544,2]
[386868988,1758499672317,211.51,0.00012025,2]
[386868989,1758499672522,211.51,0.00012506,2]
[386868990,1758499672722,211.51,0.00012987,2]
[386868991,1758499673106,211.51,0.00013468,2]
[386868992,1758499673531,211.51,0.00013949,2]
[386868993,1758499673727,211.51,0.0001443,2]
[386868994,1758499673943,211.51,0.00014911,2]
[386868995,1758499674142,211.51,0.00015391,2]
[386868996,1758499674335,211.51,0.00015872,2]
[386868997,1758499674545,211.51,0.00016353,2]
[386868999,1758499674755,211.51,0.00016834,2]
[386869000,1758499674971,211.51,0.00017315,2]
[386869001,1758499675716,211.51,0.00017796,2]
[386869002,1758499675791,211.51,0.00018277,2]
[386869003,1758499786853,1949.04,0.00018266,2]
[386869004,1758499830562,3756.44,0.00018339,2]
[386869030,1758499832013,-850.0,0.00018589,2]
[386869031,1758499832023,-300.0,0.00018589,2]
[386869032,1758499832032,-300.0,0.00018589,2]
[386869033,1758499832041,-1200.0,0.00018589,2]
[386869034,1758499832051,-1072.14839257,0.0001859,2]
[386869035,1758499832060,-500.0,0.0001859,2]
[386869036,1758499832069,-287.59245976,0.0001859,2]
[386869037,1758499832079,-500.0,0.0001859,2]
[386869038,1758499832088,-500.0,0.0001859,2]
[386869039,1758499832097,-500.0,0.0001859,2]
[386869040,1758499832107,-500.0,0.0001859,2]
[386869041,1758499832116,-500.0,0.0001859,2]
[386869042,1758499832126,-500.0,0.0001859,2]
[386869043,1758499832135,-500.0,0.0001859,2]
[386869044,1758499832144,-500.0,0.0001859,2]
[386869045,1758499832154,-500.0,0.0001859,2]
[386869046,1758499832163,-500.0,0.0001859,2]
[386869047,1758499832173,-500.0,0.0001859,2]
[386869049,1758499832183,-500.0,0.0001859,2]
[386869051,1758499832193,-257.92981904,0.0001859,2]
[386869053,1758499832206,-500.0,0.0001859,2]
[386869054,1758499832216,-500.0,0.0001859,2]
[386869055,1758499832226,-2000.0,0.00018591,3]
[386869056,1758499832235,-195.0,0.00018591,2]
[386869057,1758499832247,-250.0,0.00018591,2]
[386869058,1758499832256,-163.06,0.00018593,2]
[386869059,1758499832266,-469.38673212,0.00018593,2]
[386869060,1758499832278,-154.72,0.00018594,2]
[386869061,1758499832288,-913.29,0.00018723,2]
[386869062,1758499832297,-163.57,0.00018834,2]
[386869063,1758499832307,-1707.06,0.0001886,2]
[386869064,1758499832316,-3000.0,0.00018998,2]
[386869065,1758499832326,-2948.47407352,0.00018998,2]
[386869066,1758499832338,-1105.20414623,0.00018998,2]
[386869067,1758499832349,-493.61014242,0.00018998,2]
[386869068,1758499832374,-1201.91361871,0.00018998,2]
[386869069,1758499832386,-3133.48653392,0.00018998,2]
[386869070,1758499832395,-167.24,0.00019038,2]
[386869071,1758499832404,-1583.31358592,0.00019053,2]
[386869072,1758499832416,-525.74328535,0.00019053,2]
[386869074,1758499832671,-578.1981307,0.00019053,2]
[386869075,1758499832683,-3961.32181857,0.00019053,2]
[386869076,1758499832696,-2562.77116931,0.00019053,2]
[386869077,1758499832705,-500.0,0.00019068,2]
[386869078,1758499832715,-151.0,0.00019106,2]
[386869079,1758499832724,-151.0,0.00019106,2]
[386869080,1758499832733,-151.0,0.00019106,2]
[386869081,1758499832743,-151.0,0.00019106,2]
[386869082,1758499832752,-151.0,0.00019106,2]
[386869083,1758499832761,-151.0,0.00019106,2]
[386869084,1758499832770,-151.0,0.00019106,2]
[386869085,1758499832780,-151.0,0.00019106,2]
[386869086,1758499832789,-151.0,0.00019106,2]
[386869088,1758499832799,-151.0,0.00019106,2]
[386869090,1758499832808,-151.0,0.00019106,2]
[386869092,1758499832819,-151.0,0.00019106,2]
[386869094,1758499832829,-151.0,0.00019106,2]
[386869096,1758499832838,-151.0,0.00019106,2]
[386869098,1758499832847,-151.0,0.00019106,2]
[386869100,1758499832857,-151.0,0.00019106,2]
[386869102,1758499832867,-223.84346736,0.00019106,2]
[386869104,1758499832876,-165.78343445,0.00019106,2]
[386869106,1758499832885,-322.6107,0.00019106,2]
[386869107,1758499832894,-151.0,0.00019106,2]
[386869109,1758499832904,-151.0,0.00019106,2]
[386869112,1758499832914,-7489.32236496,0.00019108,2]
[386869114,1758499832923,-6155.97258541,0.00019118,2]
[386869116,1758499832935,-2368.76761459,0.00019118,2]
[386869118,1758499832944,-1000.0,0.00019118,2]
[386869120,1758499832954,-150.0,0.00019184,2]
[386869122,1758499832963,-150.0,0.00019184,2]
[386869124,1758499832972,-150.0,0.00019184,2]
[386869126,1758499832982,-204.95116417,0.00019184,2]
[386869128,1758499832991,-150.0,0.00019184,2]
[386869130,1758499833000,-150.0,0.00019184,2]
[386869132,1758499833009,-150.0,0.00019184,2]
[386869134,1758499833019,-152.59674892,0.00019184,2]
[386869136,1758499833028,-150.0,0.00019184,2]
[386869138,1758499833038,-150.0,0.00019184,2]
[386869140,1758499833047,-200.66088443,0.00019184,2]
[386869142,1758499833056,-150.0,0.00019184,2]
[386869144,1758499833066,-503.0,0.0001926,2]
[386869146,1758499833077,-908.16255895,0.00019279,2]
[386869148,1758499833087,-258.58322607,0.00019279,2]
[386869150,1758499833098,-1760.77,0.00019339,2]
[386869152,1758499833107,-379.0,0.0001937,2]
[386869154,1758499833116,-261.47,0.00019385,2]
[386869156,1758499833126,-961.33400649,0.00019399,2]
[386869158,1758499833136,-7300.8117579,0.00019427,2]
[386869160,1758499833145,-500.0,0.00019436,2]
[386869162,1758499833154,-211.9049597,0.00019436,2]
[386869163,1758499833164,-172.08758974,0.00019436,2]
[386869166,1758499833173,-434.83096732,0.00019436,2]
[386869168,1758499833183,-400.0,0.00019437,2]
[386869169,1758499833192,-417.47851959,0.00019437,2]
[386869171,1758499833201,-400.0,0.00019437,2]
[386869173,1758499833211,-400.0,0.00019437,2]
[386869175,1758499833221,-400.0,0.00019437,2]
[386869177,1758499833230,-400.0,0.00019437,2]
[386869180,1758499833241,-400.0,0.00019437,2]
[386869182,1758499833250,-400.0,0.00019437,2]
[386869183,1758499833260,-400.0,0.00019437,2]
[386869185,1758499833269,-400.0,0.00019437,2]
[386869187,1758499833279,-400.0,0.00019437,2]
[386869189,1758499833288,-400.0,0.00019437,2]
[386869191,1758499833297,-400.0,0.00019437,2]
[386869193,1758499833307,-400.0,0.00019437,2]
[386869195,1758499833316,-400.0,0.00019437,2]
[386869197,1758499833327,-400.0,0.00019437,2]
[386869199,1758499833336,-400.0,0.00019437,2]
[386869201,1758499833346,-400.0,0.00019437,2]
[386869203,1758499833356,-400.0,0.00019437,2]
[386869205,1758499833366,-400.0,0.00019437,2]
[386869207,1758499833377,-400.0,0.00019437,2]
[386869210,1758499833387,-400.0,0.00019437,2]
[386869212,1758499833397,-400.0,0.00019437,2]
[386869214,1758499833406,-400.0,0.00019437,2]
[386869216,1758499833416,-400.0,0.00019437,2]
[386869218,1758499833426,-400.0,0.00019437,2]
[386869220,1758499833436,-400.0,0.00019437,2]
[386869222,1758499833446,-400.0,0.00019437,2]
[386869224,1758499833456,-400.0,0.00019437,2]
[386869226,1758499833466,-400.0,0.00019437,2]
[386869228,1758499833476,-400.0,0.00019437,2]
[386869230,1758499833487,-400.0,0.00019437,2]
[386869232,1758499833497,-400.0,0.00019437,2]
[386869234,1758499833507,-400.0,0.00019437,2]
[386869236,1758499833517,-400.0,0.00019437,2]
[386869238,1758499833527,-400.0,0.00019437,2]
[386869240,1758499833536,-400.0,0.00019437,2]
[386869242,1758499833545,-400.0,0.00019437,2]
[386869244,1758499833555,-400.0,0.00019437,2]
[386869246,1758499833565,-400.0,0.00019437,2]
[386869248,1758499833576,-400.0,0.00019437,2]
[386869250,1758499833585,-400.0,0.00019437,2]
[386869252,1758499833595,-400.0,0.00019437,2]
[386869254,1758499833604,-400.0,0.00019437,2]
[386869256,1758499833613,-100.15061672,0.00019437,2]
[386869259,1758499833631,-299.84938328,0.00019437,2]
[386869261,1758499833640,-318.98,0.00019437,2]
[386869263,1758499833650,-400.0,0.00019437,2]
[386869265,1758499833659,-400.0,0.00019437,2]
[386869267,1758499833668,-400.0,0.00019437,2]
[386869269,1758499833678,-400.0,0.00019437,2]
[386869271,1758499833687,-400.0,0.00019437,2]
[386869273,1758499833697,-400.0,0.00019437,2]
[386869275,1758499833706,-400.0,0.00019437,2]
[386869277,1758499833716,-400.0,0.00019437,2]
[386869279,1758499833725,-400.0,0.00019437,2]
[386869280,1758499833734,-195.95212956,0.00019437,2]
[386869673,1758499837767,-204.04787044,0.00019437,2]
[386869675,1758499837777,-400.0,0.00019437,2]
[386869677,1758499837786,-132.0787997,0.00019437,2]
[386869813,1758499839055,-267.9212003,0.00019437,2]
[386869815,1758499839068,-400.0,0.00019437,2]
[386869818,1758499839080,-369.33212994,0.00019437,2]
[386869820,1758499839094,-30.66787006,0.00019437,2]
[386869823,1758499839106,-400.0,0.00019437,2]
[386869825,1758499839118,-289.74869205,0.00019437,2]
[386869838,1758499839225,-110.25130795,0.00019437,2]
[386869840,1758499839237,-400.0,0.00019437,2]
[386869842,1758499839250,-400.0,0.00019437,2]
[386869845,1758499839261,-400.0,0.00019437,2]
[386869847,1758499839273,-400.0,0.00019437,2]
[386869849,1758499839284,-400.0,0.00019437,2]
[386869852,1758499839296,-400.0,0.00019437,2]
[386869854,1758499839307,-400.0,0.00019437,2]
[386869856,1758499839321,-173.67635972,0.00019437,2]
[386869858,1758499839332,-400.0,0.00019437,2]
[386869861,1758499839342,-400.0,0.00019437,2]
[386869863,1758499839352,-400.0,0.00019437,2]
[386869864,1758499839364,-400.0,0.00019437,2]
[386869867,1758499839375,-400.0,0.00019437,2]
[386869869,1758499839388,-400.0,0.00019437,2]
[386869871,1758499839401,-400.0,0.00019437,2]
[386869874,1758499839412,-400.0,0.00019437,2]
[386869876,1758499839421,-400.0,0.00019437,2]
[386869878,1758499839432,-400.0,0.00019437,2]
[386869880,1758499839442,-400.0,0.00019437,2]
[386869882,1758499839454,-400.0,0.00019437,2]
[386869884,1758499839466,-253.86246931,0.00019437,2]
[386869888,1758499839490,-146.13753069,0.00019437,2]
[386869890,1758499839501,-400.0,0.00019437,2]
[386869892,1758499839513,-400.0,0.00019437,2]
[386869895,1758499839524,-400.0,0.00019437,2]
[386869896,1758499839534,-400.0,0.00019437,2]
[386869897,1758499839545,-400.0,0.00019437,2]
[386869899,1758499839555,-400.0,0.00019437,2]
[386869900,1758499839567,-400.0,0.00019437,2]
[386869902,1758499839583,-400.0,0.00019437,2]
[386869904,1758499839594,-400.0,0.00019437,2]
[386869907,1758499839605,-400.0,0.00019437,2]
[386869909,1758499839617,-400.0,0.00019437,2]
[386869911,1758499839628,-400.0,0.00019437,2]
[386869913,1758499839639,-400.0,0.00019437,2]
[386869915,1758499839651,-400.0,0.00019437,2]
[386869917,1758499839662,-400.0,0.00019437,2]
[386869919,1758499839673,-400.0,0.00019437,2]
[386869921,1758499839684,-400.0,0.00019437,2]
[386869924,1758499839695,-400.0,0.00019437,2]
[386869926,1758499839706,-400.0,0.00019437,2]
[386869928,1758499839717,-400.0,0.00019437,2]
[386869930,1758499839728,-400.0,0.00019437,2]
[386869932,1758499839739,-400.0,0.00019437,2]
[386869935,1758499839750,-400.0,0.00019437,2]
[386869937,1758499839761,-400.0,0.00019437,2]
[386869939,1758499839772,-400.0,0.00019437,2]
[386869941,1758499839784,-400.0,0.00019437,2]
[386869943,1758499839794,-400.0,0.00019437,2]
[386869945,1758499839806,-400.0,0.00019437,2]
[386869948,1758499839817,-400.0,0.00019437,2]
[386869951,1758499839829,-400.0,0.00019437,2]
[386869953,1758499839840,-565.45,0.00019437,2]
[386869955,1758499839851,-400.0,0.00019437,2]
[386869957,1758499839863,-493.53,0.00019437,2]
[386869960,1758499839874,-400.0,0.00019437,2]
[386869962,1758499839886,-400.0,0.00019437,2]
[386869964,1758499839897,-400.0,0.00019437,2]
[386869966,1758499839907,-400.0,0.00019437,2]
[386869968,1758499839919,-400.0,0.00019437,2]
[386869970,1758499839929,-400.0,0.00019437,2]
[386869973,1758499839940,-455.41,0.00019437,2]
[386869975,1758499839951,-400.0,0.00019437,2]
[386869977,1758499839962,-400.0,0.00019437,2]
[386869979,1758499839973,-400.0,0.00019437,2]
[386869981,1758499839984,-400.0,0.00019437,2]
[386869983,1758499839995,-400.0,0.00019437,2]
[386869986,1758499840006,-400.0,0.00019437,2]
[386869988,1758499840017,-400.0,0.00019437,2]
[386869990,1758499840028,-400.0,0.00019437,2]
[386869992,1758499840039,-400.0,0.00019437,2]
[386869994,1758499840051,-400.0,0.00019437,2]
[386869997,1758499840062,-400.0,0.00019437,2]
[386869999,1758499840073,-400.0,0.00019437,2]
[386870001,1758499840084,-400.0,0.00019437,2]
[386870003,1758499840095,-400.0,0.00019437,2]
[386870005,1758499840108,-214.859005,0.00019437,2]
[386870016,1758499840203,-185.140995,0.00019437,2]
[386870018,1758499840214,-400.0,0.00019437,2]
[386870020,1758499840227,-400.0,0.00019437,2]
[386870023,1758499840239,-400.0,0.00019437,2]
[386870025,1758499840251,-114.859005,0.00019437,2]
[386870026,1758499840265,-285.140995,0.00019437,2]
[386870027,1758499840279,-256.0,0.0001948,2]
[386870028,1758499840290,-2458.859005,0.00019498,2]
[386870029,1758499840303,-1500.04102813,0.00019498,2]
[386870033,1758499840421,-1708.68988698,0.00019498,2]
[386870035,1758499840433,-606.93891786,0.00019511,2]
[386870037,1758499840444,-510.26,0.00019598,2]
[386870039,1758499840456,-600.25,0.00019598,2]
[386870041,1758499840467,-638.77,0.00019598,2]
[386870043,1758499840479,-563.82,0.00019598,2]
[386870046,1758499840490,-425.2,0.00019598,2]
[386870048,1758499840501,-400.0,0.00019598,2]
[386870050,1758499840512,-400.0,0.00019598,2]
[386870052,1758499840524,-501.15,0.00019598,2]
[386870054,1758499840535,-705.53,0.00019598,2]
[386870056,1758499840548,-1000.0,0.00019598,2]
[386870058,1758499840559,-736.18,0.00019598,2]
[386870060,1758499840570,-597.2,0.00019598,2]
[386870063,1758499840580,-523.57,0.00019598,2]
[386870065,1758499840591,-5000.0,0.00019598,2]
[386870067,1758499840602,-2500.0,0.00019598,2]
[386870069,1758499840613,-268.07945186,0.0001961,2]
[386870071,1758499840623,-12912.88905676,0.0001961,2]
[386870073,1758499840634,-400.0,0.00019611,2]
[386870076,1758499840645,-400.0,0.00019611,2]
[386870078,1758499840655,-400.0,0.00019611,2]
[386870080,1758499840666,-400.0,0.00019611,2]
[386870082,1758499840677,-400.0,0.00019611,2]
[386870084,1758499840688,-400.0,0.00019611,2]
[386870086,1758499840699,-282.88722247,0.00019611,2]
[386870088,1758499840710,-400.0,0.00019611,2]
[386870091,1758499840722,-400.0,0.00019611,2]
[386870093,1758499840734,-300.0,0.00019611,2]
[386870095,1758499840744,-400.0,0.00019611,2]
[386870097,1758499840755,-400.0,0.00019611,2]
[386870099,1758499840766,-286.9,0.00019611,2]
[386870101,1758499840777,-400.0,0.00019611,2]
[386870104,1758499840788,-400.0,0.00019611,2]
[386870106,1758499840799,-400.0,0.00019611,2]
[386870108,1758499840809,-400.0,0.00019611,2]
[386870110,1758499840820,-400.0,0.00019611,2]
[386870112,1758499840831,-400.0,0.00019611,2]
[386870115,1758499840842,-400.0,0.00019611,2]
[386870117,1758499840853,-400.0,0.00019611,2]
[386870119,1758499840863,-400.0,0.00019611,2]
[386870121,1758499840874,-400.0,0.00019611,2]
[386870123,1758499840885,-400.0,0.00019611,2]
[386870125,1758499840896,-400.0,0.00019611,2]
[386870128,1758499840907,-400.0,0.00019611,2]
[386870130,1758499840917,-400.0,0.00019611,2]
[386870132,1758499840928,-400.0,0.00019611,2]
[386870134,1758499840939,-400.0,0.00019611,2]
[386870136,1758499840950,-400.0,0.00019611,2]
[386870138,1758499840962,-400.0,0.00019611,2]
[386870140,1758499840973,-400.0,0.00019611,2]
[386870143,1758499840984,-517.92,0.00019611,2]
[386870145,1758499840996,-335.1,0.00019611,2]
[386870147,1758499841007,-2535.51,0.00019611,2]
[386870149,1758499841018,-400.0,0.00019611,2]
[386870151,1758499841029,-400.0,0.00019611,2]
[386870153,1758499841040,-466.12,0.00019611,2]
[386870156,1758499841050,-167.89454232,0.00019611,2]
[386870158,1758499841061,-400.0,0.00019611,2]
[386870160,1758499841072,-915.19,0.00019611,2]
[386870162,1758499841083,-538.03,0.00019611,2]
[386870164,1758499841094,-400.0,0.00019611,2]
[386870166,1758499841104,-589.15,0.00019611,2]
[386870168,1758499841115,-400.0,0.00019611,2]
[386870171,1758499841126,-400.0,0.00019611,2]
[386870173,1758499841136,-711.5,0.00019611,2]
[386870175,1758499841147,-200.43,0.00019677,2]
[386870177,1758499841158,-424.66,0.00019696,2]
[386870179,1758499841169,-400.0,0.00019696,2]
[386870181,1758499841180,-400.0,0.00019696,2]
[386870183,1758499841191,-400.0,0.00019696,2]
[386870186,1758499841201,-453.87,0.00019696,2]
[386870188,1758499841211,-520.63892201,0.00019696,2]
[386870190,1758499841222,-400.0,0.00019696,2]
[386870192,1758499841233,-400.0,0.00019696,2]
[386870194,1758499841244,-400.0,0.00019696,2]
[386870196,1758499841255,-400.0,0.00019696,2]
[386870198,1758499841266,-561.42,0.00019696,2]
[386870200,1758499841276,-400.0,0.00019696,2]
[386870203,1758499841287,-492.6,0.00019696,2]
[386870205,1758499841297,-446.07,0.00019696,2]
[386870207,1758499841309,-400.0,0.00019696,2]
[386870208,1758499841319,-400.0,0.00019696,2]
[386870209,1758499841329,-400.0,0.00019696,2]
[386870210,1758499841340,-400.0,0.00019696,2]
[386870211,1758499841352,-224.86521829,0.00019696,2]
[386870212,1758499841362,-861.35,0.00019696,2]
[386870213,1758499841373,-400.0,0.00019696,2]
[386870214,1758499841383,-628.96,0.00019696,2]
[386870215,1758499841394,-426.6,0.00019696,2]
[386870216,1758499841405,-400.0,0.00019696,2]
[386870217,1758499841415,-400.0,0.00019696,2]
[386870218,1758499841426,-400.0,0.00019696,2]
[386870219,1758499841436,-400.0,0.00019696,2]
[386870220,1758499841447,-400.0,0.00019696,2]
[386870221,1758499841458,-400.0,0.00019696,2]
[386870222,1758499841470,-1154.75,0.00019696,2]
[386870223,1758499841480,-400.0,0.00019696,2]
[386870224,1758499841491,-2082.04,0.00019696,2]
[386870225,1758499841502,-435.29,0.00019696,2]
[386870226,1758499841513,-400.0,0.00019696,2]
[386870227,1758499841524,-400.0,0.00019696,2]
[386870228,1758499841535,-400.0,0.00019696,2]
[386870229,1758499841546,-400.0,0.00019696,2]
[386870230,1758499841558,-660.59,0.00019696,2]
[386870231,1758499841570,-414.24,0.00019697,2]
[386870232,1758499841580,-400.0,0.00019697,2]
[386870233,1758499841591,-400.0,0.00019697,2]
[386870234,1758499841602,-464.07,0.00019697,2]
[386870235,1758499841613,-400.0,0.00019697,2]
[386870236,1758499841624,-413.45,0.00019697,2]
[386870237,1758499841635,-400.0,0.00019697,2]
[386870238,1758499841646,-400.0,0.00019697,2]
[386870239,1758499841658,-400.0,0.00019697,2]
[386870240,1758499841669,-400.0,0.00019697,2]
[386870241,1758499841680,-400.0,0.00019697,2]
[386870242,1758499841691,-400.0,0.00019697,2]
[386870243,1758499841702,-400.0,0.00019697,2]
[386870244,1758499841714,-400.0,0.00019697,2]
[386870245,1758499841725,-400.0,0.00019697,2]
[386870246,1758499841737,-400.0,0.00019697,2]
[386870247,1758499841748,-400.0,0.00019697,2]
[386870248,1758499841758,-400.0,0.00019697,2]
[386870249,1758499841768,-400.0,0.00019697,2]
[386870250,1758499841777,-400.0,0.00019697,2]
[386870251,1758499841787,-400.0,0.00019697,2]
[386870252,1758499841796,-400.0,0.00019697,2]
[386870253,1758499841805,-400.0,0.00019697,2]
[386870254,1758499841815,-429.95,0.00019697,2]
[386870255,1758499842217,-400.0,0.00019697,2]
[386870256,1758499842246,-400.0,0.00019697,2]
[386870257,1758499842269,-400.0,0.00019697,2]
[386870260,1758499842292,-400.0,0.00019697,2]
[386870262,1758499842302,-400.0,0.00019697,2]
[386870264,1758499842312,-400.0,0.00019697,2]
[386870265,1758499842321,-454.06,0.00019697,2]
[386870266,1758499842330,-400.0,0.00019697,2]
[386870267,1758499842340,-485.31,0.00019697,2]
[386870268,1758499842350,-400.0,0.00019697,2]
[386870269,1758499842361,-400.0,0.00019697,2]
[386870270,1758499842371,-1031.8,0.00019697,2]
[386870271,1758499842380,-510.3,0.00019697,2]
[386870272,1758499842390,-337.793258,0.00019697,2]
[386870273,1758499842399,-328.420052,0.00019697,2]
[386870274,1758499842408,-504.31,0.00019697,2]
[386870275,1758499842418,-293.632904,0.00019697,2]
[386870276,1758499842427,-567.67,0.00019697,2]
[386870277,1758499842436,-400.0,0.00019697,2]
[386870278,1758499842446,-400.0,0.00019697,2]
[386870279,1758499842455,-400.0,0.00019697,2]
[386870280,1758499842465,-400.0,0.00019697,2]
[386870281,1758499842474,-192.968557,0.00019697,2]
[386870282,1758499842483,-400.0,0.00019697,2]
[386870283,1758499842492,-214.645214,0.00019697,2]
[386870285,1758499842501,-400.0,0.00019697,2]
[386870287,1758499842510,-1032.71,0.00019697,2]
[386870289,1758499842521,-400.0,0.00019697,2]
[386870291,1758499842531,-400.0,0.00019697,2]
[386870293,1758499842540,-446.68,0.00019697,2]
[386870295,1758499842549,-177.166185,0.00019697,2]
[386870297,1758499842558,-590.36,0.00019697,2]
[386870299,1758499842568,-501.7,0.00019697,2]
[386870301,1758499842577,-447.99,0.00019697,2]
[386870304,1758499842587,-949.17,0.00019697,2]
[386870306,1758499842596,-586.0,0.00019697,2]
[386870308,1758499842606,-400.0,0.00019697,2]
[386870310,1758499842615,-522.63,0.00019697,2]
[386870312,1758499842624,-595.99,0.00019697,2]
[386870314,1758499842634,-400.0,0.00019697,2]
[386870316,1758499842643,-400.0,0.00019697,2]
[386870318,1758499842652,-400.0,0.00019697,2]
[386870320,1758499842662,-400.0,0.00019697,2]
[386870323,1758499842671,-400.0,0.00019697,2]
[386870325,1758499842680,-400.0,0.00019698,2]
[386870327,1758499842690,-400.0,0.00019698,2]
[386870329,1758499842699,-432.03,0.00019698,2]
[386870331,1758499842708,-400.0,0.00019698,2]
[386870333,1758499842717,-400.0,0.00019698,2]
[386870335,1758499842726,-400.0,0.00019698,2]
[386870338,1758499842735,-400.0,0.00019698,2]
[386870340,1758499842744,-400.0,0.00019698,2]
[386870342,1758499842753,-400.0,0.00019698,2]
[386870345,1758499842764,-400.0,0.00019698,2]
[386870346,1758499842773,-288.27182019,0.00019698,2]
[386870348,1758499842783,-400.0,0.00019698,2]
[386870350,1758499842792,-400.0,0.00019698,2]
[386870353,1758499842801,-400.0,0.00019698,2]
[386870354,1758499842810,-400.0,0.00019698,2]
[386870357,1758499842820,-198.43595063,0.00019698,2]
[386870358,1758499842829,-400.0,0.00019698,2]
[386870361,1758499842839,-400.0,0.00019698,2]
[386870363,1758499842848,-400.0,0.00019698,2]
[386870365,1758499842858,-400.0,0.00019698,2]
[386870367,1758499842867,-2037.18,0.00019698,2]
[386870369,1758499842876,-2004.61,0.00019698,2]
[386870371,1758499842887,-400.0,0.00019698,2]
[386870373,1758499842898,-400.0,0.00019698,2]
[386870374,1758499842907,-400.0,0.00019698,2]
[386870376,1758499842917,-400.0,0.00019698,2]
[386870379,1758499842927,-605.92,0.00019698,2]
[386870381,1758499842936,-400.0,0.00019698,2]
[386870382,1758499842946,-642.94,0.00019698,2]
[386870384,1758499842955,-463.34,0.00019698,2]
[386870386,1758499842965,-3484.42,0.00019698,2]
[386870389,1758499842974,-2000.0,0.000197,2]
[386870390,1758499842984,-1000.0,0.000197,2]
[386870392,1758499842993,-525.33,0.000197,2]
[386870394,1758499843003,-400.0,0.0001971,2]
[386870396,1758499843012,-400.0,0.0001971,2]
[386870399,1758499843021,-400.0,0.0001971,2]
[386870401,1758499843031,-400.0,0.0001971,2]
[386870403,1758499843040,-400.0,0.0001971,2]
[386870405,1758499843049,-400.0,0.0001971,2]
[386870407,1758499843058,-400.0,0.0001971,2]
[386870409,1758499843068,-400.0,0.0001971,2]
[386870410,1758499843077,-400.0,0.0001971,2]
[386870412,1758499843086,-400.0,0.0001971,2]
[386870414,1758499843095,-400.0,0.0001971,2]
[386870416,1758499843105,-400.0,0.0001971,2]
[386870419,1758499843115,-400.0,0.0001971,2]
[386870420,1758499843124,-500.0,0.0001971,2]
[386870422,1758499843133,-326.59645902,0.0001971,2]
[386870425,1758499843143,-400.0,0.0001971,2]
[386870426,1758499843152,-400.0,0.0001971,2]
[386870428,1758499843161,-400.0,0.0001971,2]
[386870430,1758499843171,-400.0,0.0001971,2]